[Event "Championnat d'Europe Rapide"]
[Date "2024.12.07"]
[White "Arnaudov, G. Petar"]
[Black "Santos Latasa, Jaime"]
[WhiteElo "2401"]
[BlackElo "2628"]
[Round "5.16"]
[Result "0-1"]
[TimeControl "900+10"]

1. Nf3 {[%emt 00:00:40] [%clk 00:14:39]} e6 {[%emt 00:00:03] [%clk 00:15:18]} 2.
c4 {[%emt 00:00:04]} d5 {[%clk 00:15:26]} 3. g3 {[%emt 00:00:01] [%clk
00:14:55]} d4 {[%emt 00:00:23] [%clk 00:15:14]} 4. Bg2 {[%emt 00:00:09] [%clk
00:14:56]} c5 {[%emt 00:00:06] [%clk 00:15:18]} 5. d3 {[%emt 00:00:16] [%clk
00:14:50]} Nc6 {[%emt 00:00:25] [%clk 00:15:02]} 6. O-O {[%emt 00:00:12] [%clk
00:14:48]} Nf6 {[%emt 00:00:19] [%clk 00:14:54]} 7. e3 {[%emt 00:00:13] [%clk
00:14:44]} Bd6 {[%emt 00:00:02] [%clk 00:15:02]} 8. exd4 {[%emt 00:00:07] [%clk
00:14:48]} cxd4 {[%emt 00:00:01] [%clk 00:15:11]} 9. Bg5 {[%emt 00:00:03] [%clk
00:14:54]} h6 {[%emt 00:00:12] [%clk 00:15:09]} 10. Bxf6 {[%emt 00:00:02] [%clk
00:15:02]} Qxf6 {[%emt 00:00:02] [%clk 00:15:17]} 11. Nbd2 {[%emt 00:00:01]
[%clk 00:15:11]} Qe7 {[%emt 00:00:02] [%clk 00:15:25]} 12. a3 {[%emt 00:00:12]
[%clk 00:15:10]} a5 {[%emt 00:00:02] [%clk 00:15:33]} 13. Rc1 {[%emt 00:00:04]
[%clk 00:15:16]} O-O {[%emt 00:00:05] [%clk 00:15:38]} 14. Re1 {[%emt 00:01:42]
[%clk 00:13:44]} Rd8 {[%emt 00:00:28] [%clk 00:15:20]} 15. Qc2 {[%emt 00:00:23]
[%clk 00:13:31]} a4 {[%emt 00:01:12] [%clk 00:14:18]} 16. c5 {[%emt 00:00:02]
[%clk 00:13:38]} Bc7 {[%emt 00:00:03] [%clk 00:14:25]} 17. Ne4 {[%emt 00:01:24]
[%clk 00:12:25]} Bd7 {[%emt 00:00:41] [%clk 00:13:53]} 18. Nfd2 {[%emt 00:00:07]
[%clk 00:12:29]} Na5 {[%emt 00:00:07] [%clk 00:13:56]} 19. Nc4 {[%emt 00:00:59]
[%clk 00:11:39]} Nb3 {[%emt 00:01:07] [%clk 00:13:00]} 20. Rcd1 {[%emt 00:00:02]
[%clk 00:11:47]} Bc6 {[%emt 00:00:18] [%clk 00:12:51]} 21. Ncd6 {[%emt 00:00:45]
[%clk 00:11:13]} Ba5 {[%emt 00:02:54] [%clk 00:10:07]} 22. Re2 {[%emt 00:00:53]
[%clk 00:10:29]} f5 {[%emt 00:00:08] [%clk 00:10:10]} 23. Nd2 {[%emt 00:00:01]
[%clk 00:10:37]} Bxg2 {[%emt 00:00:35] [%clk 00:09:46]} 24. Nxb3 {[%emt
00:01:30] [%clk 00:09:17]} axb3 {[%emt 00:01:55] [%clk 00:08:01]} 25. Qc4 {[%emt
00:01:10] [%clk 00:08:17]} b5 {[%emt 00:00:38] [%clk 00:07:32]} 26. Qxb3 {[%emt
00:00:02] [%clk 00:08:26]} Rxd6 {[%emt 00:00:28] [%clk 00:07:14]} 27. cxd6
{[%emt 00:00:07] [%clk 00:08:29]} Qb7 {[%clk 00:07:23]} 28. Qxe6+ {[%emt
00:00:13] [%clk 00:08:25]} Kh8 {[%emt 00:01:11]} 29. Rc2 {[%clk 00:07:25]} Qf3
{[%emt 00:01:58] [%clk 00:05:44]} 30. Rc8+ {[%emt 00:04:39] [%clk 00:02:57]}
Rxc8 {[%emt 00:00:10] [%clk 00:05:44]} 31. Qxc8+ {[%emt 00:00:01] [%clk
00:03:06]} Kh7 {[%clk 00:05:53]} 32. Rc1 {[%emt 00:00:03] [%clk 00:03:13]} Bh1
{[%emt 00:00:42] [%clk 00:05:21]} 33. Kf1 {[%emt 00:00:04] [%clk 00:03:18]}
Qxd3+ {[%emt 00:00:04] [%clk 00:05:28]} 34. Kg1 {[%clk 00:03:27]} Qf3 {[%emt
00:00:02] [%clk 00:05:37]} 35. Kf1 {[%emt 00:00:02] [%clk 00:03:35]} Qg2+ {[%emt
00:00:15] [%clk 00:05:31]} 36. Ke2 {[%emt 00:00:02] [%clk 00:03:44]} d3+ {[%emt
00:00:13] [%clk 00:05:28]} 0-1

[Site "Europe Echecs"]

[Event "Championnat d'Europe Rapide"]
[Date "2024.12.07"]
[White "Tsolakidou, Stavroula"]
[Black "Sarana, Alexey"]
[WhiteElo "2451"]
[BlackElo "2674"]
[Round "5.17"]
[Result "0-1"]
[TimeControl "900+10"]

1. e4 {[%emt 00:00:08] [%clk 00:15:12]} c5 {[%emt 00:00:05] [%clk 00:15:16]} 2.
Nf3 {[%emt 00:00:03] [%clk 00:15:19]} d6 {[%clk 00:15:25]} 3. Bb5+ {[%emt
00:00:18] [%clk 00:15:11]} Bd7 {[%emt 00:00:01] [%clk 00:15:33]} 4. Bxd7+ {[%emt
00:00:18] [%clk 00:15:03]} Qxd7 {[%emt 00:00:02] [%clk 00:15:41]} 5. O-O {[%emt
00:00:02] [%clk 00:15:11]} Nc6 {[%emt 00:00:02] [%clk 00:15:50]} 6. Re1 {[%emt
00:00:13] [%clk 00:15:07]} e6 {[%emt 00:00:54] [%clk 00:15:06]} 7. c3 {[%emt
00:02:48] [%clk 00:12:29]} d5 {[%emt 00:00:03] [%clk 00:15:13]} 8. exd5 {[%emt
00:01:44] [%clk 00:10:54]} Qxd5 {[%emt 00:00:02] [%clk 00:15:22]} 9. d4 {[%emt
00:00:04] [%clk 00:11:01]} Nf6 {[%emt 00:02:02] [%clk 00:13:29]} 10. Qa4 {[%emt
00:02:12] [%clk 00:08:58]} cxd4 {[%emt 00:02:09] [%clk 00:11:31]} 11. Nxd4
{[%emt 00:00:29] [%clk 00:08:39]} Bc5 {[%emt 00:00:13] [%clk 00:11:28]} 12. Nxc6
{[%emt 00:01:16] [%clk 00:07:33]} bxc6 {[%emt 00:00:02] [%clk 00:11:36]} 13. Nd2
{[%emt 00:00:09] [%clk 00:07:34]} O-O {[%emt 00:00:04] [%clk 00:11:42]} 14. Nf3
{[%emt 00:00:33] [%clk 00:07:10]} Bb6 {[%emt 00:00:03] [%clk 00:11:50]} 15. Bg5
{[%emt 00:01:13] [%clk 00:06:07]} Qb5 {[%emt 00:00:19] [%clk 00:11:42]} 16. Qxb5
{[%emt 00:01:46] [%clk 00:04:30]} cxb5 {[%emt 00:00:02] [%clk 00:11:50]} 17. a4
{[%emt 00:00:01] [%clk 00:04:39]} a6 {[%emt 00:00:06] [%clk 00:11:55]} 18. Bxf6
{[%emt 00:01:41] [%clk 00:03:07]} gxf6 {[%emt 00:00:02] [%clk 00:12:03]} 19. Re4
{[%emt 00:00:14] [%clk 00:03:03]} f5 {[%emt 00:01:00] [%clk 00:11:13]} 20. Rb4
{[%emt 00:00:44] [%clk 00:02:29]} Bc5 {[%emt 00:00:43] [%clk 00:10:41]} 21. Rb3
{[%emt 00:00:13] [%clk 00:02:25]} b4 {[%emt 00:00:23] [%clk 00:10:28]} 22. cxb4
{[%emt 00:00:12] [%clk 00:02:23]} Rfb8 {[%emt 00:00:02] [%clk 00:10:36]} 23. Ne5
{[%emt 00:00:32] [%clk 00:02:00]} Bf8 {[%emt 00:00:35] [%clk 00:10:12]} 24. Nc6
{[%emt 00:00:45] [%clk 00:01:26]} Rb6 {[%emt 00:00:01] [%clk 00:10:21]} 25. Rc1
{[%emt 00:00:04] [%clk 00:01:31]} Kg7 {[%emt 00:00:02] [%clk 00:10:29]} 26. b5
{[%emt 00:00:08] [%clk 00:01:33]} axb5 {[%emt 00:00:02] [%clk 00:10:38]} 27.
axb5 {[%emt 00:00:20] [%clk 00:01:23]} Kf6 {[%emt 00:00:32] [%clk 00:10:15]} 28.
Kf1 {[%emt 00:00:12] [%clk 00:01:21]} Ra4 {[%emt 00:00:40] [%clk 00:09:45]} 29.
Ke2 {[%emt 00:00:36] [%clk 00:00:55]} Rh4 {[%emt 00:00:57] [%clk 00:08:58]} 30.
h3 {[%emt 00:00:05] [%clk 00:01:00]} Bh6 {[%emt 00:00:03] [%clk 00:09:05]} 31.
Rc2 {[%emt 00:00:53] [%clk 00:00:17]} Re4+ {[%emt 00:00:30] [%clk 00:08:45]} 32.
Kf1 {[%clk 00:00:26]} Bf8 {[%emt 00:00:25] [%clk 00:08:30]} 33. Rc1 {[%emt
00:00:13] [%clk 00:00:24]} h5 {[%emt 00:00:11] [%clk 00:08:28]} 34. Ra1 {[%emt
00:00:22] [%clk 00:00:13]} Rc4 {[%emt 00:00:24] [%clk 00:08:14]} 35. Na7 {[%emt
00:00:08] [%clk 00:00:15]} Rc2 {[%emt 00:00:16] [%clk 00:08:07]} 36. Ra6 {[%emt
00:00:11] [%clk 00:00:15]} Bc5 {[%emt 00:00:10] [%clk 00:08:06]} 37. Nc6 {[%emt
00:00:14] [%clk 00:00:11]} Rxf2+ {[%emt 00:00:13] [%clk 00:08:02]} 38. Ke1
{[%clk 00:00:21]} Rxg2 {[%emt 00:00:02] [%clk 00:08:10]} 39. Rxb6 {[%emt
00:00:17] [%clk 00:00:14]} Bxb6 {[%emt 00:00:02] [%clk 00:08:19]} 40. Nb8 {[%emt
00:00:07] [%clk 00:00:16]} Ke7 {[%emt 00:00:06] [%clk 00:08:23]} 41. Rd3 {[%emt
00:00:12] [%clk 00:00:15]} Rxb2 {[%emt 00:00:09] [%clk 00:08:23]} 0-1

[Site "Europe Echecs"]

[Event "Championnat d'Europe Rapide"]
[Date "2024.12.07"]
[White "Domingo Nunez, Ruben"]
[Black "Mamedov, Rauf"]
[WhiteElo "2409"]
[BlackElo "2656"]
[Round "5.18"]
[Result "1/2-1/2"]
[TimeControl "900+10"]

1. e4 {[%emt 00:00:04] [%clk 00:15:16]} c5 {[%clk 00:15:19]} 2. d4 {[%emt
00:00:01] [%clk 00:15:24]} cxd4 {[%emt 00:00:03] [%clk 00:15:27]} 3. c3 {[%clk
00:15:33]} Nf6 {[%emt 00:00:01] [%clk 00:15:36]} 4. e5 {[%clk 00:15:42]} Nd5
{[%emt 00:00:01] [%clk 00:15:45]} 5. Nf3 {[%clk 00:15:51]} d6 {[%emt 00:00:08]
[%clk 00:15:47]} 6. Qxd4 {[%emt 00:00:02] [%clk 00:15:59]} e6 {[%emt 00:00:15]
[%clk 00:15:42]} 7. Nbd2 {[%emt 00:00:01] [%clk 00:16:08]} Nc6 {[%emt 00:00:02]
[%clk 00:15:51]} 8. Bb5 {[%emt 00:00:01] [%clk 00:16:16]} Bd7 {[%emt 00:00:14]
[%clk 00:15:47]} 9. Bxc6 {[%emt 00:00:01] [%clk 00:16:25]} Bxc6 {[%clk
00:15:57]} 10. Nc4 {[%emt 00:00:01] [%clk 00:16:34]} dxe5 {[%emt 00:00:20] [%clk
00:15:46]} 11. Ncxe5 {[%emt 00:00:02] [%clk 00:16:42]} h6 {[%emt 00:01:54] [%clk
00:14:02]} 12. O-O {[%emt 00:00:02] [%clk 00:16:50]} Qb6 {[%emt 00:00:18] [%clk
00:13:54]} 13. Nxc6 {[%emt 00:01:05] [%clk 00:15:55]} bxc6 {[%emt 00:00:08]
[%clk 00:13:57]} 14. Qa4 {[%emt 00:01:06] [%clk 00:14:58]} Be7 {[%emt 00:02:21]
[%clk 00:11:46]} 15. c4 {[%emt 00:00:03] [%clk 00:15:04]} Nf6 {[%emt 00:01:37]
[%clk 00:10:20]} 16. b4 {[%emt 00:01:44] [%clk 00:13:30]} O-O {[%emt 00:00:06]
[%clk 00:10:24]} 17. Rb1 {[%emt 00:00:17] [%clk 00:13:23]} Qc7 {[%emt 00:00:25]
[%clk 00:10:09]} 18. Bb2 {[%emt 00:02:31] [%clk 00:11:02]} Nd7 {[%emt 00:00:02]
[%clk 00:10:18]} 19. b5 {[%emt 00:04:13] [%clk 00:06:59]} a6 {[%emt 00:01:18]
[%clk 00:09:10]} 20. bxc6 {[%emt 00:01:17] [%clk 00:05:52]} Nc5 {[%emt 00:00:02]
[%clk 00:09:17]} 21. Qc2 {[%emt 00:00:01] [%clk 00:06:01]} Qxc6 {[%emt 00:00:01]
[%clk 00:09:26]} 22. Ne5 {[%clk 00:06:10]} Qc7 {[%emt 00:00:41] [%clk 00:08:55]}
23. Ng4 {[%emt 00:00:35] [%clk 00:05:45]} h5 {[%emt 00:01:13] [%clk 00:07:52]}
24. Ne5 {[%emt 00:00:26] [%clk 00:05:30]} Rfd8 {[%emt 00:01:12] [%clk 00:06:50]}
25. Qe2 {[%emt 00:00:11] [%clk 00:05:28]} Bf6 {[%emt 00:00:33] [%clk 00:06:26]}
26. Qxh5 {[%emt 00:01:00] [%clk 00:04:39]} Ne4 {[%emt 00:02:48] [%clk 00:03:49]}
27. Nf3 {[%emt 00:00:51] [%clk 00:03:58]} Qxc4 {[%emt 00:00:38] [%clk 00:03:21]}
28. Bxf6 {[%emt 00:00:01] [%clk 00:04:07]} Nxf6 {[%emt 00:00:02] [%clk
00:03:30]} 29. Qxf7+ {[%emt 00:00:01] [%clk 00:04:16]} Kxf7 {[%emt 00:00:05]
[%clk 00:03:34]} 30. Ne5+ {[%emt 00:00:01] [%clk 00:04:25]} Kg8 {[%emt 00:00:03]
[%clk 00:03:41]} 31. Nxc4 {[%emt 00:00:02] [%clk 00:04:33]} Rac8 {[%clk
00:03:50]} 32. Rfc1 {[%emt 00:00:59] [%clk 00:03:44]} Nd5 {[%emt 00:00:45] [%clk
00:03:16]} 33. g3 {[%emt 00:00:01] [%clk 00:03:53]} Rc5 {[%emt 00:00:11] [%clk
00:03:13]} 34. Ne3 {[%emt 00:00:55] [%clk 00:03:09]} Rxc1+ {[%emt 00:00:23]
[%clk 00:02:58]} 35. Rxc1 {[%emt 00:00:04] [%clk 00:03:17]} Nxe3 {[%emt
00:00:07] [%clk 00:03:00]} 36. fxe3 {[%emt 00:00:05] [%clk 00:03:24]} Rd2 {[%emt
00:00:03] [%clk 00:03:06]} 37. Rc6 {[%emt 00:00:05] [%clk 00:03:29]} Rxa2 {[%emt
00:00:01] [%clk 00:03:14]} 38. Rxe6 {[%emt 00:00:02] [%clk 00:03:38]} 1/2-1/2

[Site "Europe Echecs"]

[Event "Championnat d'Europe Rapide"]
[Date "2024.12.07"]
[White "Bulmaga, Irina"]
[Black "Fressinet, Laurent"]
[WhiteElo "2386"]
[BlackElo "2588"]
[Round "5.19"]
[Result "1/2-1/2"]
[TimeControl "900+10"]

1. e4 {[%emt 00:00:02] [%clk 00:15:17]} e5 {[%emt 00:00:05] [%clk 00:15:18]} 2.
Nf3 {[%clk 00:15:24]} Nc6 {[%emt 00:00:03] [%clk 00:15:26]} 3. d4 {[%emt
00:00:05] [%clk 00:15:32]} exd4 {[%emt 00:00:02] [%clk 00:15:32]} 4. Nxd4 {[%emt
00:00:02] [%clk 00:15:39]} Qf6 {[%emt 00:00:34] [%clk 00:15:08]} 5. Be3 {[%emt
00:00:05] [%clk 00:15:45]} Bc5 {[%emt 00:00:08] [%clk 00:15:10]} 6. c3 {[%emt
00:00:02] [%clk 00:15:52]} Nge7 {[%emt 00:00:08] [%clk 00:15:12]} 7. Bc4 {[%emt
00:00:04] [%clk 00:15:59]} O-O {[%emt 00:00:18] [%clk 00:15:04]} 8. O-O {[%emt
00:00:06] [%clk 00:16:03]} b6 {[%emt 00:00:03] [%clk 00:15:11]} 9. Qd2 {[%emt
00:00:14] [%clk 00:15:58]} Qg6 {[%emt 00:01:31] [%clk 00:13:51]} 10. Nxc6 {[%emt
00:00:04] [%clk 00:16:04]} Qxc6 {[%emt 00:00:33] [%clk 00:13:29]} 11. Bxc5
{[%emt 00:00:04] [%clk 00:16:09]} Qxc5 {[%emt 00:00:10] [%clk 00:13:29]} 12. Na3
{[%emt 00:00:03] [%clk 00:16:16]} d6 {[%emt 00:02:07] [%clk 00:11:31]} 13. b4
{[%emt 00:00:29] [%clk 00:15:57]} Qc6 {[%emt 00:00:09] [%clk 00:11:30]} 14. Rfe1
{[%emt 00:01:17] [%clk 00:14:53]} Be6 {[%emt 00:01:43] [%clk 00:09:57]} 15. Bb5
{[%emt 00:02:41] [%clk 00:12:22]} Qb7 {[%emt 00:00:02] [%clk 00:10:06]} 16. Nc2
{[%emt 00:00:03] [%clk 00:12:28]} c6 {[%emt 00:00:22] [%clk 00:09:55]} 17. Bd3
{[%emt 00:00:31] [%clk 00:12:06]} Rad8 {[%emt 00:00:19] [%clk 00:09:46]} 18. Nd4
{[%emt 00:00:46] [%clk 00:11:30]} Bc8 {[%emt 00:00:02] [%clk 00:09:53]} 19. a4
{[%emt 00:01:12] [%clk 00:10:29]} Qc7 {[%emt 00:01:58] [%clk 00:08:05]} 20. a5
{[%emt 00:00:28] [%clk 00:10:11]} Bd7 {[%emt 00:00:51] [%clk 00:07:24]} 21. Qg5
{[%emt 00:01:40] [%clk 00:08:41]} Ng6 {[%emt 00:00:45] [%clk 00:06:49]} 22. Nf5
{[%emt 00:00:50] [%clk 00:08:01]} d5 {[%emt 00:01:06] [%clk 00:05:53]} 23. axb6
{[%emt 00:01:18] [%clk 00:06:54]} axb6 {[%emt 00:00:02] [%clk 00:06:00]} 24.
Ne7+ {[%emt 00:01:27] [%clk 00:05:37]} Nxe7 {[%emt 00:00:22] [%clk 00:05:49]}
25. Qxe7 {[%emt 00:00:02] [%clk 00:05:45]} Rfe8 {[%emt 00:00:16] [%clk
00:05:42]} 26. Qh4 {[%emt 00:00:13] [%clk 00:05:41]} Qe5 {[%emt 00:01:55] [%clk
00:03:58]} 27. Rac1 {[%emt 00:00:55] [%clk 00:04:57]} g6 {[%emt 00:02:01] [%clk
00:02:06]} 28. f4 {[%emt 00:00:10] [%clk 00:04:56]} Qd6 {[%emt 00:00:58] [%clk
00:01:18]} 29. e5 {[%emt 00:00:07] [%clk 00:05:00]} Qe7 {[%emt 00:00:02] [%clk
00:01:27]} 30. Qf2 {[%emt 00:00:23] [%clk 00:04:46]} c5 {[%emt 00:00:10] [%clk
00:01:28]} 31. f5 {[%emt 00:02:33] [%clk 00:02:22]} gxf5 {[%emt 00:00:27] [%clk
00:01:11]} 32. Re3 {[%emt 00:00:04] [%clk 00:02:28]} Kh8 {[%emt 00:00:14] [%clk
00:01:07]} 33. Rce1 {[%emt 00:00:36] [%clk 00:02:02]} Rg8 {[%emt 00:00:39] [%clk
00:00:37]} 34. Bxf5 {[%emt 00:00:38] [%clk 00:01:34]} Bxf5 {[%emt 00:00:16]
[%clk 00:00:32]} 35. Qxf5 {[%emt 00:00:01] [%clk 00:01:43]} Rg5 {[%emt 00:00:02]
[%clk 00:00:41]} 36. Qf4 {[%emt 00:00:55] [%clk 00:00:57]} Rdg8 {[%emt 00:00:10]
[%clk 00:00:41]} 37. R1e2 {[%emt 00:00:10] [%clk 00:00:58]} Qe6 {[%emt 00:00:09]
[%clk 00:00:42]} 38. Rf3 {[%emt 00:00:36] [%clk 00:00:31]} R8g7 {[%emt 00:00:08]
[%clk 00:00:44]} 39. h3 {[%emt 00:00:12] [%clk 00:00:29]} h6 {[%emt 00:00:14]
[%clk 00:00:40]} 40. Qf6 {[%emt 00:00:18] [%clk 00:00:21]} R5g6 {[%emt 00:00:13]
[%clk 00:00:37]} 41. Qd8+ {[%emt 00:00:14] [%clk 00:00:17]} Kh7 {[%emt 00:00:12]
[%clk 00:00:35]} 42. Qh4 {[%emt 00:00:05] [%clk 00:00:22]} Qc6 {[%emt 00:00:31]
[%clk 00:00:15]} 43. bxc5 {[%emt 00:00:14] [%clk 00:00:18]} bxc5 {[%emt
00:00:02] [%clk 00:00:22]} 44. Kh2 {[%emt 00:00:04] [%clk 00:00:23]} Qe6 {[%emt
00:00:05] [%clk 00:00:27]} 45. Qf4 {[%emt 00:00:11] [%clk 00:00:22]} Rg5 {[%emt
00:00:06] [%clk 00:00:31]} 46. Qe3 {[%emt 00:00:10] [%clk 00:00:22]} Qg6 {[%emt
00:00:22] [%clk 00:00:20]} 47. g3 {[%emt 00:00:19] [%clk 00:00:12]} Qc6 {[%emt
00:00:14] [%clk 00:00:16]} 48. Rf6 {[%emt 00:00:03] [%clk 00:00:20]} Qd7 {[%emt
00:00:07] [%clk 00:00:19]} 49. Qd3+ {[%emt 00:00:03] [%clk 00:00:27]} Kg8 {[%emt
00:00:16] [%clk 00:00:13]} 50. e6 {[%emt 00:00:09] [%clk 00:00:28]} fxe6 {[%emt
00:00:04] [%clk 00:00:18]} 51. Rexe6 {[%emt 00:00:18] [%clk 00:00:20]} Rxg3
{[%emt 00:00:12] [%clk 00:00:16]} 52. Qxg3 {[%emt 00:00:07] [%clk 00:00:23]}
Rxg3 {[%emt 00:00:01] [%clk 00:00:25]} 53. Kxg3 {[%emt 00:00:02] [%clk
00:00:31]} Qc7+ {[%emt 00:00:12] [%clk 00:00:23]} 54. Kf3 {[%emt 00:00:06] [%clk
00:00:35]} Qa5 {[%emt 00:00:04] [%clk 00:00:29]} 55. Rg6+ {[%emt 00:00:04] [%clk
00:00:41]} Kf7 {[%emt 00:00:02] [%clk 00:00:36]} 56. Rgf6+ {[%emt 00:00:07]
[%clk 00:00:45]} Kg7 {[%clk 00:00:46]} 1/2-1/2

[Site "Europe Echecs"]

[Event "Championnat d'Europe Rapide"]
[Date "2024.12.07"]
[White "Hamitevici, Vladimir"]
[Black "Pichot, Alan"]
[WhiteElo "2423"]
[BlackElo "2637"]
[Round "5.20"]
[Result "1/2-1/2"]
[TimeControl "900+10"]

1. Nf3 {[%emt 00:00:04] [%clk 00:15:15]} Nf6 {[%emt 00:00:39] [%clk 00:14:42]}
2. e3 {[%emt 00:00:15] [%clk 00:15:10]} g6 {[%emt 00:00:23] [%clk 00:14:30]} 3.
b3 {[%emt 00:00:25] [%clk 00:14:55]} Bg7 {[%emt 00:00:03] [%clk 00:14:37]} 4.
Bb2 {[%emt 00:00:01] [%clk 00:15:03]} O-O {[%emt 00:00:07] [%clk 00:14:40]} 5.
Be2 {[%emt 00:00:13] [%clk 00:14:59]} d6 {[%emt 00:00:14] [%clk 00:14:38]} 6. d4
{[%emt 00:00:12] [%clk 00:14:56]} e5 {[%emt 00:00:31] [%clk 00:14:16]} 7. dxe5
{[%emt 00:00:06] [%clk 00:15:00]} Nfd7 {[%emt 00:00:02] [%clk 00:14:25]} 8. O-O
{[%emt 00:01:26] [%clk 00:13:45]} dxe5 {[%emt 00:00:08] [%clk 00:14:27]} 9. e4
{[%emt 00:00:20] [%clk 00:13:34]} Nc6 {[%emt 00:02:00] [%clk 00:12:37]} 10. Bb5
{[%emt 00:00:46] [%clk 00:12:57]} Re8 {[%emt 00:01:17] [%clk 00:11:32]} 11. Bxc6
{[%emt 00:00:45] [%clk 00:12:22]} bxc6 {[%emt 00:00:01] [%clk 00:11:40]} 12. Qd3
{[%emt 00:00:09] [%clk 00:12:23]} Qe7 {[%emt 00:00:28] [%clk 00:11:23]} 13. Ba3
{[%emt 00:02:41] [%clk 00:09:51]} Qe6 {[%emt 00:00:14] [%clk 00:11:19]} 14. h3
{[%emt 00:00:43] [%clk 00:09:18]} a5 {[%emt 00:00:55] [%clk 00:10:34]} 15. Rd1
{[%emt 00:00:43] [%clk 00:08:45]} h6 {[%emt 00:00:13] [%clk 00:10:31]} 16. Nc3
{[%emt 00:00:55] [%clk 00:07:59]} f5 {[%emt 00:01:53] [%clk 00:08:49]} 17. Na4
{[%emt 00:01:00] [%clk 00:07:10]} f4 {[%emt 00:02:38] [%clk 00:06:20]} 18. Nd2
{[%emt 00:01:34] [%clk 00:05:46]} g5 {[%emt 00:01:50] [%clk 00:04:41]} 19. Qc4
{[%emt 00:00:37] [%clk 00:05:18]} Nb6 {[%emt 00:02:02] [%clk 00:02:50]} 20.
Qxe6+ {[%emt 00:00:11] [%clk 00:05:17]} Bxe6 {[%emt 00:00:01] [%clk 00:02:58]}
21. Nb2 {[%emt 00:01:09] [%clk 00:04:18]} h5 {[%emt 00:00:20] [%clk 00:02:49]}
22. f3 {[%emt 00:00:48] [%clk 00:03:40]} Rad8 {[%emt 00:00:25] [%clk 00:02:34]}
23. Nd3 {[%emt 00:01:22] [%clk 00:02:27]} Bc8 {[%emt 00:00:02] [%clk 00:02:42]}
24. Kf2 {[%emt 00:00:22] [%clk 00:02:15]} Ba6 {[%emt 00:00:19] [%clk 00:02:34]}
25. Nb2 {[%emt 00:00:10] [%clk 00:02:14]} Rd7 {[%emt 00:00:19] [%clk 00:02:26]}
26. Ndc4 {[%emt 00:00:40] [%clk 00:01:43]} Red8 {[%emt 00:00:02] [%clk
00:02:34]} 27. Rxd7 {[%emt 00:00:52] [%clk 00:01:01]} Rxd7 {[%emt 00:00:01]
[%clk 00:02:43]} 28. Ke1 {[%emt 00:00:09] [%clk 00:01:02]} g4 {[%emt 00:01:02]
[%clk 00:01:51]} 29. hxg4 {[%emt 00:00:07] [%clk 00:01:05]} hxg4 {[%emt
00:00:01] [%clk 00:02:00]} 30. Rd1 {[%emt 00:00:42] [%clk 00:00:33]} Rxd1+
{[%emt 00:01:06] [%clk 00:01:04]} 31. Kxd1 {[%emt 00:00:02] [%clk 00:00:42]} g3
{[%emt 00:00:11] [%clk 00:01:03]} 32. Bc5 {[%emt 00:00:26] [%clk 00:00:26]} a4
{[%emt 00:00:37] [%clk 00:00:36]} 33. Ke1 {[%emt 00:00:08] [%clk 00:00:28]} axb3
{[%emt 00:00:20] [%clk 00:00:26]} 34. cxb3 {[%emt 00:00:08] [%clk 00:00:30]} Nd7
{[%emt 00:00:06] [%clk 00:00:29]} 35. Bb4 {[%emt 00:00:23] [%clk 00:00:17]} Kf7
{[%emt 00:00:26] [%clk 00:00:14]} 36. Nd3 {[%emt 00:00:01] [%clk 00:00:25]} Ke6
{[%emt 00:00:02] [%clk 00:00:22]} 37. Nc5+ {[%emt 00:00:19] [%clk 00:00:16]}
Nxc5 {[%emt 00:00:02] [%clk 00:00:31]} 38. Bxc5 {[%clk 00:00:25]} Bf6 {[%emt
00:00:18] [%clk 00:00:23]} 39. Kd2 {[%emt 00:00:05] [%clk 00:00:29]} Kd7 {[%emt
00:00:21] [%clk 00:00:13]} 40. Kc3 {[%emt 00:00:05] [%clk 00:00:34]} Kc8 {[%emt
00:00:08] [%clk 00:00:16]} 41. Kb4 {[%emt 00:00:02] [%clk 00:00:41]} Kb7 {[%emt
00:00:05] [%clk 00:00:21]} 42. Ka5 {[%emt 00:00:04] [%clk 00:00:46]} Bg7 {[%emt
00:00:06] [%clk 00:00:25]} 43. Bb4 {[%emt 00:00:13] [%clk 00:00:43]} Bf6 {[%emt
00:00:03] [%clk 00:00:33]} 44. Bc3 {[%emt 00:00:08] [%clk 00:00:45]} Bg7 {[%emt
00:00:07] [%clk 00:00:35]} 45. Ka4 {[%emt 00:00:13] [%clk 00:00:42]} Bb5+ {[%emt
00:00:04] [%clk 00:00:43]} 46. Ka3 {[%emt 00:00:03] [%clk 00:00:48]} Kc8 {[%emt
00:00:25] [%clk 00:00:27]} 47. Kb2 {[%emt 00:00:03] [%clk 00:00:55]} Kd7 {[%emt
00:00:08] [%clk 00:00:29]} 48. Nxe5+ {[%emt 00:00:35] [%clk 00:00:30]} Bxe5
{[%emt 00:00:16] [%clk 00:00:24]} 49. Bxe5 {[%emt 00:00:01] [%clk 00:00:39]} Bf1
{[%emt 00:00:01] [%clk 00:00:32]} 50. Bxf4 {[%emt 00:00:02] [%clk 00:00:47]}
Bxg2 {[%emt 00:00:02] [%clk 00:00:40]} 51. Bxg3 {[%emt 00:00:04] [%clk
00:00:53]} Bxf3 {[%emt 00:00:01] [%clk 00:00:49]} 52. e5 {[%emt 00:00:02] [%clk
00:01:01]} c5 {[%emt 00:00:28] [%clk 00:00:32]} 53. Kc3 {[%emt 00:00:14] [%clk
00:00:57]} Bd5 {[%emt 00:00:11] [%clk 00:00:31]} 54. Bh4 {[%emt 00:00:22] [%clk
00:00:45]} Ke6 {[%emt 00:00:09] [%clk 00:00:32]} 55. Bf6 {[%emt 00:00:09] [%clk
00:00:45]} Kd7 {[%emt 00:00:02] [%clk 00:00:41]} 56. Bh4 {[%emt 00:00:29] [%clk
00:00:26]} Ke6 {[%emt 00:00:01] [%clk 00:00:49]} 57. Bg3 {[%emt 00:00:03] [%clk
00:00:33]} Kd7 {[%emt 00:00:02] [%clk 00:00:56]} 58. a4 {[%emt 00:00:09] [%clk
00:00:35]} Kc6 {[%emt 00:00:10] [%clk 00:00:56]} 59. Bh4 {[%emt 00:00:11] [%clk
00:00:34]} Be6 {[%emt 00:00:08] [%clk 00:00:59]} 60. Be7 {[%emt 00:00:06] [%clk
00:00:37]} Kb6 {[%emt 00:00:10] [%clk 00:00:59]} 61. Bd8 {[%emt 00:00:09] [%clk
00:00:39]} Bd5 {[%emt 00:00:15] [%clk 00:00:53]} 62. b4 {[%emt 00:00:18] [%clk
00:00:31]} cxb4+ {[%emt 00:00:02] [%clk 00:01:02]} 63. Kxb4 {[%emt 00:00:01]
[%clk 00:00:39]} Kb7 {[%emt 00:00:01] [%clk 00:01:11]} 64. Kc5 {[%emt 00:00:10]
[%clk 00:00:39]} c6 {[%emt 00:00:01] [%clk 00:01:20]} 65. Kd6 {[%emt 00:00:15]
[%clk 00:00:34]} Ka8 {[%emt 00:00:02] [%clk 00:01:28]} 66. e6 {[%emt 00:00:09]
[%clk 00:00:35]} Bxe6 {[%emt 00:00:02] [%clk 00:01:37]} 67. Kxe6 {[%emt
00:00:01] [%clk 00:00:43]} c5 {[%emt 00:00:01] [%clk 00:01:46]} 1/2-1/2

[Site "Europe Echecs"]